bitfinex/quotes_BTCUSD_20250420
["timestamp","ask_amount","ask_price","bid_price","bid_amount"]
[1745163451937,0.0471,84272.0,84255.0,0.13152]
[1745163455356,0.04702842,84272.0,84256.0,0.34]
[1745163456543,0.0471,84271.0,84256.0,0.34]
[1745163459073,0.00296662,84270.0,84256.0,0.34]
[1745163459283,0.00296662,84270.0,84257.0,0.13152]
[1745163461715,0.00296662,84270.0,84258.0,1.219]
[1745163463123,0.00296662,84270.0,84259.0,0.34]
[1745163466478,0.00296662,84270.0,84260.0,0.13152]
[1745163467810,0.0471,84271.0,84260.0,0.13152]
[1745163469353,0.05006678,84271.0,84260.0,0.13152]
[1745163470092,0.05006678,84271.0,84261.0,0.34]
[1745163471347,0.05006678,84271.0,84263.0,0.34]
[1745163476077,0.05006678,84271.0,84264.0,0.13152]
[1745163480890,0.05006678,84271.0,84265.0,1.219]
[1745163481983,0.0471,84271.0,84265.0,1.219]
[1745163482191,0.0467,84278.0,84265.0,1.219]
[1745163482389,0.0495412,84282.0,84268.0,0.19926498]
[1745163484393,0.0495412,84282.0,84269.0,0.01454085]
[1745163485866,0.0480412,84288.0,84271.0,0.01454085]
[1745163486087,0.0008412,84288.0,84274.0,0.34]
[1745163487441,0.0008416,84294.0,84279.0,0.34]
[1745163487621,0.0008416,84294.0,84281.0,0.34]
[1745163488179,0.0008416,84294.0,84281.0,0.3487298]
[1745163489288,0.0978,84293.0,84280.0,0.13152]
[1745163489495,0.12241376,84292.0,84280.0,0.13152]
[1745163489704,0.0978,84287.0,84281.0,0.13148]
[1745163489904,0.0484,84285.0,84283.0,0.34]
[1745163490108,0.0484,84285.0,84284.0,0.47148]
[1745163490334,0.16784791,84285.0,84284.0,0.13148]
[1745163490540,0.16884791,84285.0,84284.0,0.13148]
[1745163490732,0.21824791,84285.0,84284.0,0.13148]
[1745163497581,0.21824791,84285.0,84284.0,1.3504]
[1745163505163,0.21724791,84285.0,84284.0,1.3504]
[1745163518637,0.21724791,84285.0,84284.0,1.35044]
[1745163520312,0.12960578,84291.0,84284.0,1.35144]
[1745163520556,0.12960578,84291.0,84284.0,1.35044]
[1745163520805,0.00296601,84290.0,84284.0,1.35044]
[1745163523105,0.00296601,84290.0,84285.0,0.34]
[1745163524069,0.00380761,84294.0,84285.0,0.34]
[1745163532268,0.11944791,84293.0,84285.0,0.34]
[1745163532489,0.00296622,84292.0,84285.0,0.34]
[1745163532697,0.11944791,84291.0,84285.0,0.34]
[1745163532913,0.00296622,84290.0,84285.0,0.34]
[1745163533201,0.11944791,84289.0,84285.0,0.34]
[1745163533381,0.00296622,84288.0,84285.0,0.34]
[1745163533579,0.11944791,84287.0,84285.0,0.34]
[1745163533786,0.00296622,84286.0,84285.0,0.34]
[1745163537910,0.11944791,84287.0,84285.0,0.34]
[1745163541069,0.00296622,84286.0,84285.0,0.34]
[1745163541430,0.11944791,84287.0,84285.0,0.34]
[1745163544190,0.00296622,84286.0,84285.0,0.34]
[1745163550857,0.00296622,84286.0,84285.0,0.47148]
[1745163571237,0.17131413,84286.0,84285.0,0.13148]
[1745163571440,0.17131413,84286.0,84285.0,0.13144]
[1745163582143,0.17031413,84286.0,84285.0,0.13144]
[1745163595001,0.17031413,84286.0,84285.0,1.35036]
[1745163605030,0.12241413,84286.0,84285.0,1.35036]
[1745163609703,0.11944791,84286.0,84285.0,1.35036]
[1745163625470,0.11944791,84286.0,84285.0,1.21892]
[1745163625758,0.11944791,84286.0,84285.0,1.35036]
[1745163645825,0.21414791,84286.0,84285.0,1.35036]
[1745163646232,0.34375369,84286.0,84285.0,1.35036]
[1745163648002,0.01454085,84285.0,84251.0,0.34]
[1745163648194,0.10824085,84278.0,84270.0,1.35044]
[1745163648425,0.21314791,84271.0,84270.0,1.35044]
[1745163648598,0.34275369,84271.0,84270.0,1.35044]
[1745163648835,0.34375369,84271.0,84270.0,1.35044]
[1745163649234,0.35829454,84271.0,84270.0,1.35044]
[1745163649848,0.23414085,84270.0,84250.0,0.0008414]
[1745163649994,0.35655685,84270.0,84250.0,0.0008414]
[1745163650339,0.35458876,84270.0,84250.0,0.0008414]
[1745163650604,0.22998876,84270.0,84250.0,0.0008414]
[1745163650804,0.2329568,84270.0,84250.0,0.0008414]
[1745163652826,0.36256258,84270.0,84250.0,0.0008414]
[1745163653041,0.35959454,84270.0,84250.0,0.0008414]
[1745163655359,0.35959454,84270.0,84269.0,1.35077882]
[1745163660417,0.01454085,84263.0,84250.0,0.0008414]
[1745163660695,0.01454085,84263.0,84251.0,1.35084]
[1745163660696,0.10464085,84259.0,84251.0,1.35084]
[1745163660895,0.11944791,84252.0,84251.0,1.35084]
[1745163661053,0.24899487,84252.0,84251.0,1.35084]
[1745163662066,0.29499487,84252.0,84251.0,1.35084]
[1745163662295,0.34009487,84252.0,84251.0,1.35084]
[1745163666397,0.33909487,84252.0,84251.0,1.35084]
[1745163666580,0.29409487,84252.0,84251.0,1.35084]
[1745163666829,0.24899487,84252.0,84251.0,1.35084]
[1745163677377,0.24899487,84252.0,84251.0,1.35184]
[1745163677605,0.11944791,84252.0,84251.0,1.35184]
[1745163679528,0.11944791,84252.0,84251.0,1.69184]
[1745163683973,0.11944791,84252.0,84251.0,1.69084]
[1745163688947,0.11944791,84252.0,84251.0,1.35084]
[1745163697510,0.11931912,84252.0,84251.0,1.35084]
[1745163727960,0.12954696,84268.0,84252.0,0.34]
[1745163728161,0.12241492,84267.0,84252.0,0.34]
[1745163740181,0.12241492,84267.0,84252.0,0.18953825]
[1745163746349,0.12241492,84267.0,84253.0,0.13144]
[1745163748584,0.0486,84266.0,84253.0,0.13144]
[1745163748785,0.19926498,84263.0,84253.0,0.13144]
[1745163748960,0.12241518,84262.0,84253.0,0.13144]
[1745163764440,0.11944791,84262.0,84253.0,0.13144]
[1745163766844,0.11944791,84262.0,84254.0,0.0486]
[1745163777989,0.11944791,84262.0,84255.0,1.21928]
[1745163784126,0.17554696,84278.0,84255.0,1.21928]
[1745163784347,0.11944791,84277.0,84256.0,0.0476]
[1745163785008,0.12241443,84277.0,84256.0,0.0476]
[1745163785697,0.11944791,84277.0,84256.0,0.0476]
[1745163788662,0.11944791,84277.0,84260.0,0.19926498]
[1745163788842,0.11944791,84277.0,84261.0,0.0476]
[1745163790971,0.00338737,84286.0,84267.0,0.19926498]
[1745163791199,0.000421,84286.0,84269.0,0.0476]
[1745163796543,0.000421,84286.0,84269.0,0.3876]
[1745163797417,0.000421,84286.0,84270.0,0.0461]
[1745163805438,0.000421,84286.0,84271.0,1.21896]
[1745163810549,0.000421,84286.0,84272.0,0.13136]
[1745163814630,0.11944791,84285.0,84273.0,1.35028]
[1745163824737,0.16774791,84285.0,84273.0,1.35028]
[1745163842345,0.16774791,84285.0,84274.0,0.13136]
[1745163845825,0.0486,84284.0,84274.0,0.13136]
[1745163846056,0.16804791,84284.0,84274.0,0.13136]
[1745163847086,0.16804791,84284.0,84275.0,1.21884]
[1745163852022,0.16804791,84284.0,84276.0,1.3502]
[1745163853121,0.16813877,84284.0,84276.0,1.3502]
[1745163854176,0.16813877,84284.0,84276.0,1.35921003]
[1745163859404,0.0475,84283.0,84277.0,0.34]
[1745163863350,0.04747752,84283.0,84278.0,0.13132]
[1745163868079,0.04747752,84283.0,84279.0,1.21884]
[1745163869802,0.04747752,84283.0,84279.0,1.23153432]
[1745163872949,0.04747752,84283.0,84280.0,0.13132]
[1745163877771,0.04747752,84283.0,84281.0,1.21884]
[1745163880118,9.086e-05,84284.0,84281.0,1.21884]
[1745163880339,9.086e-05,84284.0,84281.0,1.21984]
[1745163883151,9.086e-05,84284.0,84282.0,0.34]
[1745163883656,9.086e-05,84284.0,84282.0,0.341]
[1745163885418,9.086e-05,84284.0,84283.0,1.69012]
[1745163885793,9.086e-05,84284.0,84283.0,1.69112]
[1745163887079,9.086e-05,84284.0,84283.0,1.69012]
[1745163887427,0.000421,84286.0,84283.0,1.35012]
[1745163891051,0.000421,84286.0,84284.0,0.34]
[1745163899943,0.000421,84286.0,84284.0,0.2804]
[1745163906800,0.000421,84286.0,84285.0,0.13128]
[1745163909730,0.096421,84286.0,84285.0,0.13128]
[1745163911513,0.096421,84286.0,84285.0,1.34996]
[1745163914400,0.21686891,84286.0,84285.0,1.21868]
[1745163914599,0.21686891,84286.0,84285.0,1.34996]
[1745163914801,0.21686891,84286.0,84285.0,1.21868]
[1745163915005,0.21686891,84286.0,84285.0,1.34996]
[1745163915207,0.21546891,84286.0,84285.0,1.34996]
[1745163916808,0.0946,84285.0,84279.0,0.01269432]
[1745163916999,0.25041587,84286.0,84250.0,0.0008414]
[1745163917000,0.11944791,84280.0,84250.0,0.0008414]
[1745163917201,0.0946,84275.0,84250.0,0.0008414]
[1745163917423,0.12241475,84274.0,84250.0,0.0008414]
[1745163917632,0.0946,84271.0,84250.0,0.01361718]
[1745163917853,0.12241475,84270.0,84250.0,0.01361718]
[1745163918056,0.0492,84266.0,84250.0,0.01361718]
[1745163918267,0.16864791,84265.0,84250.0,0.01361718]
[1745163919539,0.16864791,84265.0,84250.0,0.02236726]
[1745163919691,0.16864791,84265.0,84250.0,0.0008414]
[1745163921922,0.16864791,84265.0,84250.0,0.01328633]
[1745163923187,0.16864791,84265.0,84250.0,0.0220524]
[1745163923331,0.15864791,84265.0,84250.0,0.0220524]
[1745163923538,0.15864791,84265.0,84250.0,0.0008414]
[1745163925358,0.15864791,84265.0,84251.0,1.35028]
[1745163928708,0.10944791,84265.0,84251.0,1.35028]
[1745163928870,0.0454,84267.0,84251.0,1.35028]
[1745163929043,0.0454,84267.0,84257.0,0.19926498]
[1745163929477,0.0492,84276.0,84257.0,0.19926498]
[1745163929676,0.16444791,84275.0,84257.0,0.19926498]
[1745163929876,0.16444791,84275.0,84252.0,0.0471]
[1745163931264,0.16444791,84275.0,84251.0,1.35028]
[1745163932027,0.16444791,84275.0,84252.0,0.34]
[1745163938780,0.16444791,84275.0,84260.0,0.19926498]
[1745163940777,0.045,84275.0,84260.0,0.19926498]
[1745163945011,0.045,84275.0,84261.0,0.13132]
[1745163946430,0.045,84275.0,84265.0,0.19926498]
[1745163947087,0.0492,84276.0,84265.0,0.19926498]
[1745163947284,0.0492,84276.0,84262.0,0.01454085]
[1745163948492,8.014e-05,84285.0,84262.0,0.01454085]
[1745163949312,8.014e-05,84285.0,84270.0,0.19926498]
[1745163950115,0.04558014,84285.0,84270.0,0.19926498]
[1745163951522,0.0487,84284.0,84270.0,0.19926498]
[1745163951694,0.0487,84284.0,84271.0,1.21888]
[1745163955424,0.0487,84284.0,84272.0,1.35012]
[1745163956670,0.0487,84284.0,84272.0,1.35911515]
[1745163965292,0.0453,84283.0,84272.0,1.35911515]
[1745163965489,0.0485,84282.0,84272.0,1.35911515]
[1745163968963,0.0485,84282.0,84273.0,0.13128]
[1745163970559,0.0453,84283.0,84273.0,0.13128]
[1745163983815,0.0467,84282.0,84273.0,0.13128]
[1745163992511,0.0467,84282.0,84274.0,0.34]
[1745163992868,0.0467,84282.0,84275.0,1.21876]
[1745163993074,0.0467,84282.0,84276.0,0.34]
[1745163994469,0.0453,84283.0,84276.0,0.34]
[1745163996175,0.0473,84282.0,84276.0,0.34]
[1745163997847,0.0473,84282.0,84277.0,0.13128]
[1745164002685,0.0473,84282.0,84278.0,1.21876]
[1745164012163,0.0473,84282.0,84279.0,0.13128]
[1745164016372,0.0473,84282.0,84280.0,0.00739864]
[1745164016979,0.0473,84282.0,84281.0,1.22619864]
[1745164017384,0.0473,84282.0,84281.0,1.2188]
[1745164018962,0.0473,84282.0,84281.0,1.22619864]
[1745164021466,0.0453,84283.0,84281.0,1.22619864]
[1745164021867,0.0453,84283.0,84282.0,0.13863864]
[1745164023717,0.0453,84283.0,84282.0,0.47863864]
[1745164026113,0.04130114,84291.0,84283.0,0.34]
[1745164027159,0.04130114,84291.0,84284.0,0.00739864]
[1745164027984,0.04130114,84291.0,84285.0,0.00739864]
[1745164028495,0.04130114,84291.0,84286.0,0.00739864]
[1745164029087,0.04130114,84291.0,84287.0,0.00739864]
[1745164029674,0.04130114,84291.0,84288.0,0.00739864]
[1745164030120,0.04130114,84291.0,84289.0,0.00739782]
[1745164030518,0.04130114,84291.0,84290.0,0.00739782]
[1745164030991,0.04230114,84291.0,84290.0,0.00739782]
[1745164031337,0.04230114,84291.0,84290.0,1.22615782]
[1745164031968,0.04130114,84291.0,84290.0,1.22615782]
[1745164033722,0.08980114,84291.0,84290.0,1.22615782]
[1745164036201,0.08980114,84291.0,84290.0,1.35739782]
[1745164042548,0.21024905,84291.0,84290.0,1.35739782]
[1745164044612,0.21024905,84291.0,84290.0,1.35]
[1745164045640,0.21024905,84291.0,84290.0,1.35739904]
[1745164055296,0.21024905,84291.0,84290.0,1.35]
[1745164057710,0.21024905,84291.0,84290.0,1.35739942]
[1745164076383,0.61914905,84291.0,84290.0,1.35]
[1745164079053,0.6336899,84291.0,84290.0,1.35]
[1745164089791,0.54488876,84291.0,84290.0,1.3504]
[1745164090522,0.001,84258.0,84220.0,0.412]
[1745164090703,0.001,84249.0,84241.0,0.1]
[1745164090899,0.11944791,84248.0,84241.0,0.1]
[1745164091125,0.11944791,84248.0,84241.0,0.101]
[1745164092889,0.00284612,84247.0,84241.0,0.0462]
[1745164093037,0.12229403,84247.0,84241.0,0.0462]
[1745164093485,0.11829403,84247.0,84241.0,0.0462]
[1745164094252,0.11829403,84247.0,84241.0,0.001]
[1745164095348,0.11829403,84247.0,84243.0,0.34]
[1745164095750,0.11829403,84247.0,84243.0,0.341]
[1745164100968,0.001,84251.0,84243.0,0.341]
[1745164101171,0.11944791,84250.0,84243.0,0.34]
[1745164101718,0.11944791,84250.0,84243.0,0.341]
[1745164102102,0.11944791,84250.0,84243.0,0.34]
[1745164105899,0.00296705,84249.0,84243.0,0.34]
[1745164106104,0.12241496,84249.0,84243.0,0.34]
[1745164110459,0.17081496,84249.0,84243.0,0.34]
[1745164110660,0.001,84247.0,84244.0,0.13164]
[1745164110860,0.12241496,84246.0,84244.0,0.13164]
[1745164111110,0.12229466,84246.0,84244.0,0.13164]
[1745164111283,0.12229466,84246.0,84245.0,0.34]
[1745164111707,0.16869466,84246.0,84245.0,0.34]
[1745164115329,0.16584791,84246.0,84245.0,0.34]
[1745164117192,0.11944791,84246.0,84245.0,0.34]
[1745164120109,0.11944791,84246.0,84245.0,1.5594]
[1745164129397,0.11944791,84246.0,84245.0,1.2194]
[1745164129855,0.11944791,84246.0,84245.0,1.35104]
[1745164135668,0.12044791,84246.0,84245.0,1.35104]
[1745164135907,0.21574791,84246.0,84245.0,1.35104]
[1745164137423,0.21674791,84246.0,84245.0,1.35104]
[1745164140648,0.21574791,84246.0,84245.0,1.35104]
[1745164148161,0.16684791,84246.0,84245.0,1.35104]
[1745164148442,0.11944791,84246.0,84245.0,1.35104]
[1745164151726,0.11944791,84246.0,84245.0,1.35204]
[1745164162423,0.001,84250.0,84245.0,1.35204]
[1745164162620,0.11944791,84249.0,84245.0,1.35104]
[1745164162824,0.00284675,84248.0,84245.0,1.35104]
[1745164163024,0.12229466,84248.0,84245.0,1.35104]
[1745164166872,0.11944791,84248.0,84245.0,1.35104]
[1745164169699,0.11944791,84248.0,84246.0,0.34]
[1745164170903,0.11944791,84248.0,84246.0,0.34045079]
[1745164174620,0.11944791,84248.0,84247.0,0.13132]
[1745164179326,0.11944791,84248.0,84247.0,1.35072]
[1745164186850,0.11944791,84248.0,84246.0,0.00045079]
[1745164187049,0.00284675,84247.0,84246.0,0.00045079]
[1745164187460,0.21719466,84247.0,84246.0,0.00045079]
[1745164188218,0.21719466,84247.0,84246.0,1.35117079]
[1745164195141,0.21819466,84247.0,84246.0,1.35117079]
[1745164204508,0.62424791,84247.0,84246.0,1.35117079]
[1745164205769,0.63878876,84247.0,84246.0,1.35117079]
[1745164206827,0.63878876,84247.0,84220.0,0.01207205]
[1745164206828,0.001,84221.0,84220.0,0.01207205]
[1745164207057,0.21274791,84221.0,84220.0,1.35104014]
[1745164207528,0.62164791,84221.0,84220.0,1.35104014]
[1745164211427,0.62164791,84221.0,84220.0,1.21972014]
[1745164211627,0.62264791,84221.0,84220.0,1.35108014]
[1745164214000,0.62164791,84221.0,84220.0,1.35108014]
[1745164225875,0.62264791,84221.0,84220.0,1.21972014]
[1745164226076,0.62264791,84221.0,84220.0,1.35108014]
[1745164226715,0.63718876,84221.0,84220.0,1.35108014]
[1745164230289,0.63718876,84221.0,84220.0,1.21972014]
[1745164230493,0.63718876,84221.0,84220.0,1.35108014]
[1745164233482,0.5643,84212.0,84211.0,0.004421]
[1745164233634,0.0987,84202.0,84189.0,1.22008]
[1745164233836,0.23553551,84202.0,84201.0,0.1322016]
[1745164234157,0.23653551,84202.0,84201.0,0.13229246]
[1745164234357,0.22199466,84202.0,84201.0,0.13229246]
[1745164235122,0.23653551,84202.0,84201.0,0.00093246]
[1745164235328,0.23653551,84202.0,84201.0,0.13229246]
[1745164235885,0.23653551,84202.0,84201.0,0.13233246]
[1745164236666,0.24553446,84202.0,84201.0,0.13233246]
[1745164236872,0.24268771,84202.0,84201.0,0.13233246]
[1745164239305,0.65158771,84202.0,84201.0,0.13233246]
[1745164240737,0.99158771,84202.0,84201.0,0.13233246]
[1745164240952,1.04158771,84202.0,84201.0,0.13233246]
[1745164243238,0.99158771,84202.0,84201.0,0.13233246]
[1745164243502,1.04158771,84202.0,84201.0,0.13233246]
[1745164245813,0.99158771,84202.0,84201.0,0.13233246]
[1745164246053,1.04158771,84202.0,84201.0,0.13233246]
[1745164246660,0.01454085,84197.0,84189.0,1.22008]
[1745164246800,0.001,84193.0,84192.0,0.1314]
[1745164247004,0.12044791,84193.0,84192.0,0.1314]
[1745164248108,0.12044791,84193.0,84192.0,0.13363233]
[1745164248538,0.21424791,84193.0,84192.0,0.13363233]
[1745164249659,0.21524791,84193.0,84192.0,0.13363233]
[1745164250063,0.25131355,84193.0,84192.0,0.13363233]
[1745164250423,0.22978876,84193.0,84192.0,0.13363233]
[1745164250626,0.22978876,84193.0,84167.0,0.000421]
[1745164250627,0.06554085,84187.0,84167.0,0.000421]
[1745164250829,0.74683551,84187.0,84186.0,1.35251628]
[1745164251031,0.74498876,84187.0,84186.0,1.35251628]
[1745164251251,0.75908582,84187.0,84186.0,1.22107628]
[1745164251457,0.75908582,84187.0,84186.0,1.35251628]
[1745164251662,0.75908582,84187.0,84186.0,1.22107628]
[1745164251864,0.75908582,84187.0,84186.0,1.35251628]
[1745164252065,0.40741126,84180.0,84167.0,0.000421]
[1745164252248,0.40741126,84180.0,84171.0,0.00413503]
[1745164252249,0.11944791,84172.0,84171.0,0.00413503]
[1745164252447,0.12229466,84172.0,84171.0,0.00413503]
[1745164252894,0.13683551,84172.0,84171.0,0.00413503]
[1745164253072,0.63964677,84172.0,84171.0,0.00413503]
[1745164253268,0.63680002,84172.0,84171.0,0.00413503]
[1745164253674,0.64590844,84172.0,84171.0,0.00413503]
[1745164255302,0.64590844,84172.0,84171.0,1.35621503]
[1745164257066,0.64590844,84172.0,84171.0,1.3522]
[1745164258033,0.64590844,84172.0,84171.0,1.22076]
[1745164258034,0.98590844,84172.0,84171.0,1.22076]
[1745164258260,1.03590844,84172.0,84171.0,1.3522]
[1745164260822,0.001,84143.0,84121.0,0.34]
[1745164261021,0.11944791,84142.0,84135.0,0.1]
[1745164261224,0.001,84156.0,84136.0,0.00237689]
[1745164261450,0.11944791,84155.0,84136.0,0.00237689]
[1745164261601,0.11944791,84155.0,84140.0,0.19926498]
[1745164261834,0.11944791,84155.0,84141.0,0.00237661]
[1745164262023,0.11944791,84155.0,84141.0,0.00337661]
[1745164262985,0.11944791,84155.0,84141.0,0.001]
[1745164264927,0.11944791,84155.0,84142.0,0.00237661]
[1745164265360,0.11944791,84155.0,84144.0,0.34]
[1745164265572,0.11944791,84155.0,84144.0,0.341]
[1745164265929,0.001,84165.0,84145.0,0.00237661]
[1745164266213,0.11944791,84164.0,84147.0,0.34]
[1745164266389,0.11944791,84164.0,84148.0,0.00237635]
[1745164266600,0.11944791,84164.0,84147.0,0.341]
[1745164267362,0.11944791,84164.0,84147.0,0.00145138]
[1745164267957,0.11944791,84164.0,84151.0,0.34]
[1745164268183,0.11944791,84164.0,84152.0,0.00237629]
[1745164268402,0.11944791,84164.0,84151.0,0.341]
[1745164270258,0.11944791,84164.0,84152.0,0.13196]
[1745164270756,0.11944791,84164.0,84152.0,0.13296]
[1745164273327,0.001,84160.0,84152.0,0.13296]
[1745164273495,0.11944791,84159.0,84152.0,0.13296]
[1745164275852,0.11944791,84159.0,84154.0,0.34]
[1745164276291,0.11944791,84159.0,84154.0,0.341]
[1745164277477,0.11944791,84159.0,84154.0,0.001]
[1745164277705,0.001,84155.0,84153.0,1.22072]
[1745164277903,0.001,84155.0,84154.0,0.13196]
[1745164278133,0.12044791,84155.0,84154.0,0.13196]
[1745164278339,0.17024791,84155.0,84154.0,0.13196]
[1745164281321,0.0476,84154.0,84153.0,1.22072]
[1745164281611,0.16704791,84154.0,84153.0,1.35268]
[1745164283324,0.16704791,84154.0,84153.0,1.22072]
[1745164283529,0.16704791,84154.0,84153.0,1.35268]
[1745164286665,0.16989466,84154.0,84153.0,1.35268]
[1745164287063,0.16704791,84154.0,84153.0,1.35268]
[1745164287272,0.11944791,84154.0,84153.0,1.35268]
[1745164291993,0.11944791,84154.0,84153.0,1.22072]
[1745164292203,0.11944791,84154.0,84153.0,1.35272]
[1745164304220,0.11837843,84154.0,84153.0,1.35272]
[1745164306470,0.11837843,84154.0,84153.0,1.35276]
[1745164310211,0.16557843,84154.0,84153.0,1.35276]
[1745164311128,0.16557843,84154.0,84153.0,1.35232]
[1745164330147,0.21567843,84154.0,84153.0,1.35232]
[1745164330729,0.62308969,84154.0,84153.0,1.35232]
[1745164333721,0.62308969,84154.0,84153.0,1.35228]
[1745164336575,0.62408969,84154.0,84153.0,1.35228]
[1745164336856,0.64618746,84154.0,84153.0,1.35228]
[1745164337059,0.2387762,84154.0,84153.0,1.35228]
[1745164337271,0.61819467,84154.0,84153.0,1.22096]
[1745164337493,0.11184085,84153.0,84147.0,0.00045138]
[1745164337697,0.0491,84150.0,84148.0,0.13152]
[1745164337872,0.21959466,84149.0,84148.0,0.13152]
[1745164338305,0.22940559,84149.0,84148.0,0.13152]
[1745164338508,0.25150336,84149.0,84148.0,0.13152]
[1745164338835,0.24865661,84149.0,84148.0,0.13152]
[1745164339010,0.01454085,84148.0,84147.0,0.00045138]
[1745164339241,0.25623328,84148.0,84147.0,0.13197138]
[1745164339447,0.25438653,84148.0,84147.0,0.13197138]
[1745164339643,0.23228876,84148.0,84147.0,0.13197138]
[1745164339784,0.23513551,84148.0,84147.0,0.13197138]
[1745164340895,0.22159466,84148.0,84147.0,0.13197138]
[1745164341336,0.21774791,84148.0,84147.0,0.13197138]
[1745164345376,0.21741647,84148.0,84147.0,1.35309138]
[1745164345580,0.21723243,84148.0,84147.0,1.35309138]
[1745164345788,0.21720709,84148.0,84147.0,1.35309138]
[1745164347920,0.62461835,84148.0,84147.0,1.35309138]
[1745164356309,0.62461835,84148.0,84147.0,1.35372]
[1745164378850,0.52785917,84148.0,84147.0,1.35372]
[1745164383036,0.57405917,84148.0,84147.0,1.35372]
[1745164389990,0.62235917,84148.0,84147.0,1.35372]
[1745164391980,0.50191126,84148.0,84147.0,1.35372]
[1745164392203,0.54180708,84148.0,84147.0,1.35372]
[1745164408545,0.54180708,84148.0,84147.0,1.3544]
[1745164410701,0.49350708,84148.0,84147.0,1.3544]
[1745164416367,0.44730708,84148.0,84147.0,1.3544]
[1745164418394,0.49280708,84148.0,84147.0,1.3544]
[1745164422688,0.16494791,84148.0,84147.0,1.3544]
[1745164425097,0.16494791,84148.0,84147.0,1.22108]
[1745164425400,0.16494791,84148.0,84147.0,1.35384]
[1745164430605,0.11944791,84148.0,84147.0,1.35384]
[1745164430983,0.11944791,84148.0,84147.0,1.3538]
[1745164436586,0.11265069,84148.0,84147.0,1.3538]
[1745164441877,0.20725069,84148.0,84147.0,1.3538]
[1745164442083,0.20725069,84148.0,84147.0,1.22104]
[1745164442235,0.20725069,84148.0,84147.0,1.3538]
[1745164459437,0.11265069,84148.0,84147.0,1.3548]
[1745164460102,0.049,84157.0,84147.0,1.3548]
[1745164460306,0.11944791,84156.0,84148.0,0.13661651]
[1745164462665,0.11944791,84156.0,84148.0,0.13424]
[1745164462978,0.12044791,84156.0,84148.0,0.13424]
[1745164464738,0.12044791,84156.0,84148.0,0.13661651]
[1745164465341,0.12044791,84156.0,84148.0,0.13424]
[1745164465780,0.0469,84155.0,84148.0,0.13424]
[1745164465971,0.11944791,84154.0,84148.0,0.13424]
[1745164468262,0.12044791,84154.0,84149.0,0.34]
[1745164470833,0.11944791,84154.0,84149.0,0.34]
[1745164471266,0.12044791,84154.0,84149.0,0.34]
[1745164471834,0.12044791,84154.0,84148.0,0.13424]
[1745164481635,0.0492,84153.0,84148.0,0.13424]
[1745164481750,0.11944791,84152.0,84148.0,0.13424]
[1745164482220,0.12044791,84152.0,84148.0,0.13424]
[1745164483776,0.12044791,84152.0,84149.0,1.22088]
[1745164486837,0.05074675,84151.0,84149.0,1.22088]
[1745164487130,0.16924791,84150.0,84149.0,1.22088]
[1745164487286,0.21714791,84150.0,84149.0,1.35544]
[1745164487490,0.21914791,84150.0,84149.0,1.35544]
[1745164488749,0.34700708,84150.0,84149.0,1.35544]
[1745164488861,0.34693912,84150.0,84149.0,1.35544]
[1745164497642,0.36147997,84150.0,84149.0,1.35544]
[1745164501186,0.34693912,84150.0,84149.0,1.35544]
[1745164505090,0.34593912,84150.0,84149.0,1.35544]
[1745164508915,0.36047997,84150.0,84149.0,1.35544]
[1745164509140,0.36047997,84150.0,84149.0,1.22088]
[1745164509315,0.36047997,84150.0,84149.0,1.35616]
[1745164510312,0.36147997,84150.0,84149.0,1.35616]
[1745164514951,0.38360374,84150.0,84149.0,1.35616]
[1745164516737,0.39467083,84150.0,84149.0,1.35616]
[1745164518027,0.39367083,84150.0,84149.0,1.35616]
[1745164518871,0.38260374,84150.0,84149.0,1.35616]
[1745164519107,0.39367226,84150.0,84149.0,1.35616]
[1745164520631,0.36047997,84150.0,84149.0,1.35616]
[1745164522365,0.34593912,84150.0,84149.0,1.35616]
[1745164528338,0.34493912,84150.0,84149.0,1.35616]
[1745164532173,0.34593912,84150.0,84149.0,1.35616]
[1745164533995,0.24730708,84150.0,84149.0,1.35616]
[1745164538494,0.11944791,84150.0,84149.0,1.35616]
[1745164559761,0.11944791,84150.0,84149.0,1.35604]
[1745164569256,0.17485917,84158.0,84149.0,1.35604]
[1745164569497,0.11944791,84157.0,84149.0,1.35604]
[1745164569714,0.11944791,84157.0,84150.0,0.00237636]
[1745164569918,0.12044791,84157.0,84150.0,0.00237636]
[1745164570211,0.12044791,84157.0,84149.0,1.35604]
[1745164570418,0.12044791,84157.0,84150.0,0.00237637]
[1745164570780,0.12044791,84157.0,84149.0,1.35604]
[1745164572227,0.12044791,84157.0,84150.0,0.00237637]
[1745164572401,0.12044791,84157.0,84149.0,1.35604]
[1745164575350,0.12044791,84157.0,84150.0,0.00237638]
[1745164575546,0.12044791,84157.0,84149.0,1.35604]
[1745164575719,0.12044791,84157.0,84150.0,0.00237638]
[1745164576303,0.001,84157.0,84150.0,0.00237638]
[1745164580151,0.0498,84163.0,84150.0,0.34237638]
[1745164580375,0.11944791,84162.0,84150.0,0.34]
[1745164580605,0.11944791,84162.0,84151.0,0.00237626]
[1745164580856,0.12044791,84162.0,84151.0,0.00237626]
[1745164581343,0.12044791,84162.0,84150.0,0.34]
[1745164585093,0.12044791,84162.0,84151.0,0.00237626]
[1745164586128,0.12044791,84162.0,84150.0,0.34]
[1745164590007,0.0916,84161.0,84150.0,0.34]
[1745164590169,0.0459,84159.0,84150.0,0.34]
[1745164590369,0.16534791,84159.0,84150.0,0.34]
[1745164590571,0.16634791,84159.0,84150.0,0.34]
[1745164591061,0.16534791,84159.0,84150.0,0.34]
[1745164591274,0.16634791,84159.0,84150.0,0.34]
[1745164601017,0.16534791,84159.0,84152.0,0.34]
[1745164601226,0.16634791,84159.0,84152.0,0.34]
[1745164605946,0.16634791,84159.0,84153.0,1.22072]
[1745164609142,0.16534791,84159.0,84153.0,1.22072]
[1745164609379,0.16634791,84159.0,84154.0,0.34]
[1745164610641,0.16634791,84159.0,84155.0,0.13336]
[1745164610876,0.16634791,84159.0,84156.0,0.34]
[1745164615487,0.16634791,84159.0,84157.0,1.22072]
[1745164619039,0.16634791,84159.0,84158.0,0.00741031]
[1745164620318,0.16634791,84159.0,84158.0,0.14077031]
[1745164621671,0.16634791,84159.0,84158.0,0.13336]
[1745164622448,0.16634791,84159.0,84158.0,0.15072448]
[1745164634601,0.16634791,84159.0,84158.0,1.37144448]